Workbook

Sheet pH
A1: V (mL) | B1: [Tc] M | C1: Number of samples | D1: Activity | E1: [solid] g/L | F1: [NaCl], M | G1: FeCO3from stock, mL
A2: 5 | B2: 1.00E-05 | C2: 20 | D2: =C2*#REF! ->  | E2: 1.3 | F2: 0.1 | G2: =E2*A2/D8 -> 0.09587963418
F4: Tc 1E-4M stock in 0.1 M NaCl | M4: Things to prepare
A5: Chemical name | B5: MW, g/mol | C5: Solution name | D5: M stock | E5: Unit | F5: Vstock, mL | G5: Mdesired | H5: Vdesired, mL | I5: Vstock to take, μL | J5: VNaCl to add, mL | K5: [NaCl], M | L5: m(NaCl), g | M5: ✔ 10 mL tube
A6: Na2CO3 | B6: =23*2+12+3*16 -> 106 | C6: Tc | D6: 1.87E-02 | E6: M | F6: 4 | G6: 1.00E-04 | H6: 10 | I6: =G6*H6/D6*1000 -> 53.5 | J6: =H6-I6/1000 -> 9.947 | K6: 0.1 | L6: =K6*B8*H6/1000 -> 0.0585 | M6: ✔ weigh NaCl
A7: NaHCO3 | B7: =23+1+12+16*3 -> 84 | C7: Tc | D7: 1.10E-02 | E7: M | F7: 6
A8: NaCl | B8: =23+35.5 -> 58.5 | C8: FeCO3 | D8: 67.79333333 | E8: g/L
N10: Things to prepare
A11: # of sample | B11: Sample | C11: pH | D11: pH measured | E11: Eh measured | F11: V, mL | G11: [Tc], M | H11: [Tc]stock, mL | I11: Vsiderite, μL | J11: VNaCl mL | K11: NaCl stock | N11: ✔ 100 mL flask
A12: 1 | B12: 3a | C12: 3 | F12: 5 | G12: =0.00001 -> 1.00E-05 | H12: =$G$12*$F$12/$G$6 -> 0.5 | I12: =$G$2*1000 -> 95.9 | J12: =F12-I12/1000-H12 -> 4.404 | K12: [NaCl], M | L12: m(NaCl], g | M12: V(NaCl), mL | N12: ✔ weigh NaCl
A13: 2 | B13: 3b | C13: 3 | F13: 5 | G13: =0.00001 -> 1.00E-05 | H13: 0.5 | I13: 95.9 | J13: =F13-I13/1000-H13 -> 4.404 | K13: 1.135 | L13: 6.635 | M13: 100 | N13: ✔ 20 x 5 mL eppies
A14: 3 | B14: 4a | C14: 4 | F14: 5 | G14: 1.00E-05 | H14: 0.5 | I14: 95.9 | J14: 4.404 | N14: ✔ check amount of DIW
A15: 4 | B15: 4b | C15: 4 | F15: 5 | G15: 1.00E-05 | H15: 0.5 | I15: 95.9 | J15: 4.404 | N15: ✔ adjust pH of siderite + NaCl mix
A16: 5 | B16: 5a | C16: 5 | F16: 5 | G16: 1.00E-05 | H16: 0.5 | I16: 95.9 | J16: 4.404
A17: 6 | B17: 5b | C17: 5 | F17: 5 | G17: 1.00E-05 | H17: 0.5 | I17: 95.9 | J17: 4.404
A18: 7 | B18: 6a | C18: 6 | F18: 5 | G18: 1.00E-05 | H18: 0.5 | I18: 95.9 | J18: 4.404
A19: 8 | B19: 6b | C19: 6 | F19: 5 | G19: 1.00E-05 | H19: 0.5 | I19: 95.9 | J19: 4.404
A20: 9 | B20: 7a | C20: 7 | F20: 5 | G20: 1.00E-05 | H20: 0.5 | I20: 95.9 | J20: 4.404
A21: 10 | B21: 7b | C21: 7 | F21: 5 | G21: 1.00E-05 | H21: 0.5 | I21: 95.9 | J21: 4.404
A22: 11 | B22: 8a | C22: 8 | F22: 5 | G22: 1.00E-05 | H22: 0.5 | I22: 95.9 | J22: 4.404
A23: 12 | B23: 8b | C23: 8 | F23: 5 | G23: 1.00E-05 | H23: 0.5 | I23: 95.9 | J23: 4.404
A24: 13 | B24: 9a | C24: 9 | F24: 5 | G24: 1.00E-05 | H24: 0.5 | I24: 95.9 | J24: 4.404
A25: 14 | B25: 9b | C25: 9 | F25: 5 | G25: 1.00E-05 | H25: 0.5 | I25: 95.9 | J25: 4.404
A26: 15 | B26: 10a | C26: 10 | F26: 5 | G26: 1.00E-05 | H26: 0.5 | I26: 95.9 | J26: 4.404
A27: 16 | B27: 10b | C27: 10 | F27: 5 | G27: 1.00E-05 | H27: 0.5 | I27: 95.9 | J27: 4.404
A28: 17 | B28: 11a | C28: 11 | F28: 5 | G28: 1.00E-05 | H28: 0.5 | I28: 95.9 | J28: 4.404
A29: 18 | B29: 11b | C29: 11 | F29: 5 | G29: 1.00E-05 | H29: 0.5 | I29: 95.9 | J29: 4.404
A30: 19 | B30: 12a | C30: 12 | F30: 5 | G30: 1.00E-05 | H30: 0.5 | I30: 95.9 | J30: 4.404
A31: 20 | B31: 12b | C31: 12 | F31: 5 | G31: 1.00E-05 | H31: 0.5 | I31: 95.9 | J31: =F31-I31/1000-H31 -> 4.404
D32: Total, mL | F32: =SUM(F12:F31) -> 100 | H32: =SUM(H12:H31) -> 10.0 | I32: =SUM(I12:I31)/1000 -> 1.9 | J32: =SUM(J12:J31) -> 88.08

Sheet LSC data
A1: Tc solutions, Measured 11.03.2026
A2: 1E-5 M Tc with 1.3 g/L of siderite, after 30 min, Experiment done 10.03.2026
A4: Measurement data | E4: Calculations
A5: ='[1]Raw data'!A1 -> Positions | B5: ='[1]Raw data'!B1 -> Sample ID | C5: ='[1]Raw data'!C1 -> cpm | D5: ='[1]Raw data'!D1 -> Efficiency | E5: DPM in vial | F5: LSC, mL | G5: Tc aliquot, mL | H5: Vial, Bq/ml | I5: Sample, Bq/ml | J5: Sample [99Tc], M | K5: LSC waste, Bq/mL | L5: Bq, solid waste
A6: A01 | B6: blank | C6: 68.34 | F6: 5
A7: A02 | B7: Tc stock 10e-4M | C7: 65636.1 | D7: 0.975 | E7: 67331.4 | F7: 5 | G7: 0.2 | H7: =E7/(60*(F7+G7)) -> 215.8057692 | I7: =E7/(60*(G7)) -> 5610.95 | J7: =I7/62659.1/1000 -> 8.954724852e-05 | K7: =H7 -> 215.81 | L7: =I7*5 -> 28054.75
A8: A03 | B8: Tc_sid_20min_4a | C8: 7069.88 | D8: 0.975 | E8: 7250.55 | F8: 5 | G8: 0.2 | H8: =E8/(60*(F8+G8)) -> 23.23894231 | I8: =E8/(60*(G8)) -> 604.2125 | J8: =I8/62659.1/1000 -> 9.642853153e-06 | K8: =H8 -> 23.24 | L8: =F8*$I$20-F8*I8 -> -215.5875
A9: A04 | B9: Tc_sid_20min_5a | C9: 7887.32 | D9: 0.977 | E9: 8075.9 | F9: 5 | G9: 0.2 | H9: 25.88429487 | I9: 672.9916667 | J9: 1.074052558e-05 | K9: 25.88 | L9: =F9*$I$20-F9*I9 -> -559.4833333
A10: A05 | B10: Tc_sid_20min_6a | C10: -17.61 | D10: 0.802 | E10: 0 | F10: 5 | G10: 0.2 | H10: 0 | I10: 0 | J10: 0 | K10: =H10 -> 0.00 | L10: =F10*$I$20-F10*I10 -> 2805.475
A11: A06 | B11: Tc_sid_20min_6b | C11: 1760.91 | D11: 0.97 | E11: 1814.95 | F11: 5 | G11: 0.2 | H11: 5.817147436 | I11: 151.2458333 | J11: 2.413788793e-06 | K11: 5.82 | L11: 2049.245833
A12: B01 | B12: Tc_sid_20min_8a | C12: 93.14 | D12: 0.886 | E12: 105.15 | F12: 5 | G12: 0.2 | H12: 0.3370192308 | I12: 8.7625 | J12: 1.398440131e-07 | K12: 0.34 | L12: 2761.6625
A13: B02 | B13: Tc_sid_20min_8b | C13: 425.42 | D13: 0.9 | E13: 472.848 | F13: 5 | G13: 0.2 | H13: 1.515538462 | I13: 39.404 | J13: 6.288631659e-07 | K13: 1.52 | L13: 2608.455
A14: B03 | B14: Tc_sid_20min_10a | C14: 64.61 | D14: 0.918 | E14: 70.412 | F14: 5 | G14: 0.2 | H14: 0.2256794872 | I14: 5.867666667 | J14: 9.364428577e-08 | K14: 0.23 | L14: 2776.136667
A15: B04 | B15: Tc_sid_20min_10b | C15: -38.33 | D15: 0.791 | E15: 0 | F15: 5 | G15: 0.2 | H15: 0 | I15: 0 | J15: 0 | K15: 0.00 | L15: 2805.475
A16: B05 | B16: Tc_sid_20min_12a | C16: 205.38 | D16: 0.93 | E16: 220.944 | F16: 5 | G16: 0.2 | H16: 0.7081538462 | I16: 18.412 | J16: 2.938439907e-07 | K16: 0.71 | L16: 2713.415
A17: B06 | B17: Tc_sid_20min_12b | C17: -30.53 | D17: 0.782 | E17: 0 | F17: 5 | G17: 0.2 | H17: 0 | I17: 0 | J17: 0 | K17: 0.00 | L17: 2805.475
H18: Volume, mL | J18: TOTAL: | K18: =SUM(K8:K17) -> 57.73 | L18: =SUM(L8:L17) -> 20550.26917
G19: Tc stock 10e-4M | I19: 5610.95 | J19: =I19/62659.1/1000 -> 9E-05
G20: Tc stock 10e-5M | I20: 561.095
G21: Tc 18.7 mM | J21: 1.87E-02
H22: =53.5/1000 -> 0.0535 | I22: =H22*I21 -> 0
A24: Tc solutions, Measured 12.03.2026
A25: 1E-5 M Tc with 1.3 g/L of siderite, after 1 day, Experiment done 11.03.2026
A27: Measurement data | E27: Calculations
A28: Positions | B28: Sample ID | C28: cpm | D28: Efficiency | E28: DPM in vial | F28: LSC, mL | G28: Tc aliquot, mL | H28: Vial, Bq/ml | I28: Sample, Bq/ml | J28: Sample [99Tc], M | K28: LSC waste, Bq/mL | L28: Bq, solid waste
A29: A01 | B29: blank | C29: 22.02
A30: A02 | B30: Tc+s_20min_pH3a | C30: 6329.81 | D30: 0.971 | E30: 6518.24 | F30: 5 | G30: 0.2 | H30: =E30/(60*($F$7+$G$7)) -> 20.89179487 | I30: =E30/(60*G30) -> 543.1866667 | J30: =I30/62659.1/1000 -> 8.67E-06 | K30: =H30 -> 20.89179487 | L30: =$I$20*5-I30*5 -> 89.54166667
A31: A03 | B31: Tc+s_20min_pH3b_ | C31: 5236.47 | D31: 0.971 | E31: 5390.91 | F31: 5 | G31: 0.2 | H31: =E31/(60*($F$7+$G$7)) -> 17.27855769 | I31: =E31/(60*G31) -> 449.2425 | J31: =I31/62659.1/1000 -> 7.17E-06 | K31: =H31 -> 17.27855769 | L31: =$I$20*5-I31*5 -> 559.2625
A32: A04 | B32: Tc+s_20min_pH6a_repeat | C32: 47.17 | D32: 0.737 | E32: 63.995 | F32: 5 | G32: 0.2 | H32: 0.2051121795 | I32: 5.332916667 | J32: 8.51E-08 | K32: 0.2051121795 | L32: 0
A33: A05 | B33: Tc+s_20min_pH6b_repeat | C33: 584.28 | D33: 0.866 | E33: 674.605 | F33: 5 | G33: 0.2 | H33: 2.162195513 | I33: 56.21708333 | J33: 8.97E-07 | K33: 2.162195513 | L33: 0
A34: A06 | B34: Tc+s_20min_pH7a_ | C34: 29.3 | D34: 0.817 | E34: 35.843 | F34: 5 | G34: 0.2 | H34: 0.1148814103 | I34: 2.986916667 | J34: 4.77E-08 | K34: 0.1148814103 | L34: =$I$20*5-I34*5 -> 2790.540417
A35: B01 | B35: Tc+s_20min_pH7b_ | C35: 34.31 | D35: 0.854 | E35: 40.182 | F35: 5 | G35: 0.2 | H35: 0.1287884615 | I35: 3.3485 | J35: 5.34E-08 | K35: 0.1287884615 | L35: =$I$20*5-I35*5 -> 2788.7325
A36: B02 | B36: Tc+s_20min_pH9a_ | C36: 1.69 | D36: 0.73 | E36: 2.316 | F36: 5 | G36: 0.2 | H36: 0.007423076923 | I36: 0.193 | J36: 3.08E-09 | K36: 0.007423076923 | L36: 2804.51
A37: B03 | B37: Tc+s_20min_pH9b_ | C37: 16.39 | D37: 0.834 | E37: 19.642 | F37: 5 | G37: 0.2 | H37: 0.06295512821 | I37: 1.636833333 | J37: 2.61E-08 | K37: 0.06295512821 | L37: 2797.290833
A38: B04 | B38: Tc+s_20min_pH10b_ | C38: 12.81 | D38: 0.789 | E38: 16.236 | F38: 5 | G38: 0.2 | H38: 0.05203846154 | I38: 1.353 | J38: 2.16E-08 | K38: 0.05203846154 | L38: 2798.71
A39: B05 | B39: Tc+s_20min_pH11a_ | C39: 2.19 | D39: 0.752 | E39: 2.913 | F39: 5 | G39: 0.2 | H39: 0.009336538462 | I39: 0.24275 | J39: 3.87E-09 | K39: 0.009336538462 | L39: 2804.26125
A40: B06 | B40: Tc+s_20min_pH11b_ | C40: 15.6 | D40: 0.779 | E40: 20.024 | F40: 5 | G40: 0.2 | H40: 0.06417948718 | I40: 1.668666667 | J40: 2.66E-08 | K40: 0.06417948718 | L40: 2797.131667
A41: C01 | B41: Tc+s_20min_pH12b_repeat | C41: 53.63 | D41: 0.583 | E41: 92.028 | F41: 5 | G41: 0.2 | H41: 0.2949615385 | I41: 7.669 | J41: 1.22E-07 | K41: 0.2949615385 | L41: 0
A42: C02 | B42: Tc+s_24h_pH3a | C42: 7851.29 | D42: 0.978 | E42: 8025.4 | F42: 5 | G42: 0.2 | H42: 25.7224359 | I42: 668.7833333 | J42: 1.07E-05 | K42: 25.7224359 | L42: =$I$20*5-I42*4.5-L30 -> -293.5916667
A43: C03 | B43: Tc+s_24h_pH3b | C43: 6803.99 | D43: 0.973 | E43: 6994.68 | F43: 5 | G43: 0.2 | H43: 22.41884615 | I43: 582.89 | J43: 9.30E-06 | K43: 22.41884615 | L43: =$I$20*5-I43*4.5-L31 -> -376.7925
A44: C04 | B44: Tc+s_24h_pH4a | C44: 145.19 | D44: 0.906 | E44: 160.279 | F44: 5 | G44: 0.2 | H44: 0.5137147436 | I44: 13.35658333 | J44: 2.13E-07 | K44: 0.5137147436 | L44: =$I$20*5-I44*4.5-L8 -> 2960.957875
A45: C05 | B45: Tc+s_24h_pH4b | C45: 612.93 | D45: 0.962 | E45: 636.993 | F45: 5 | G45: 0.2 | H45: 2.041644231 | I45: 53.08275 | J45: 8.47E-07 | K45: 2.041644231 | L45: =$I$20*5-I46*5 -> -533.5625
A46: C06 | B46: Tc+s_24h_pH5a | C46: 7828.65 | D46: 0.977 | E46: 8013.69 | F46: 5 | G46: 0.2 | H46: 25.68490385 | I46: 667.8075 | J46: 1.07E-05 | K46: 25.68490385 | L46: 2737.152083
A47: D01 | B47: Tc+s_24h_pH6a | C47: 146.8 | D47: 0.895 | E47: 163.975 | F47: 5 | G47: 0.2 | H47: 0.5255608974 | I47: 13.66458333 | J47: 2.18E-07 | K47: 0.5255608974 | L47: 2778.79
A48: D02 | B48: Tc+s_24h_pH6b | C48: 54.74 | D48: 0.855 | E48: 64.044 | F48: 5 | G48: 0.2 | H48: 0.2052692308 | I48: 5.337 | J48: 8.52E-08 | K48: 0.2052692308 | L48: 2794.632083
A49: D03 | B49: Tc+s_24h_pH8a | C49: 20.2 | D49: 0.776 | E49: 26.023 | F49: 5 | G49: 0.2 | H49: 0.08340705128 | I49: 2.168583333 | J49: 3.46E-08 | K49: 0.08340705128 | L49: 2798.185417
A50: D04 | B50: Tc+s_24h_pH8b | C50: 13.7 | D50: 0.783 | E50: 17.495 | F50: 5 | G50: 0.2 | H50: 0.05607371795 | I50: 1.457916667 | J50: 2.33E-08 | K50: 0.05607371795 | L50: 2805.475
A51: D05 | B51: Tc+s_24h_pH9a | C51: -0.51 | D51: 0.713 | E51: 0 | F51: 5 | G51: 0.2 | H51: 0 | I51: 0 | J51: 0.00E+00 | K51: 0 | L51: 2772.824583
A52: D06 | B52: Tc+s_24h_pH9b | C52: 52.91 | D52: 0.675 | E52: 78.361 | F52: 5 | G52: 0.2 | H52: 0.2511570513 | I52: 6.530083333 | J52: 1.04E-07 | K52: 0.2511570513 | L52: 2674.5675
A53: E01 | B53: Tc+s_24h_pH10a | C53: 279.35 | D53: 0.889 | E53: 314.178 | F53: 5 | G53: 0.2 | H53: 1.006980769 | I53: 26.1815 | J53: 4.18E-07 | K53: 1.006980769 | L53: 2800.081667
A54: E02 | B54: Tc+s_24h_pH10b | C54: 10.19 | D54: 0.787 | E54: 12.944 | F54: 5 | G54: 0.2 | H54: 0.04148717949 | I54: 1.078666667 | J54: 1.72E-08 | K54: 0.04148717949 | L54: 2510.297083
A55: E03 | B55: Tc+s_24h_pH12a | C55: 667.32 | D55: 0.942 | E55: 708.427 | F55: 5 | G55: 0.2 | H55: 2.270599359 | I55: 59.03558333 | J55: 9.42E-07 | K55: 2.270599359 | L55: 2772.144583
A56: E04 | B56: Tc+s_24h_pH12b | C56: 72.43 | D56: 0.905 | E56: 79.993 | F56: 5 | G56: 0.2 | H56: 0.2563878205 | I56: 6.666083333 | J56: 1.06E-07 | K56: 0.2563878205 | L56: 2805.475
J57: TOTAL: | K57: =SUM(K30:K56) -> 122.3506923 | L57: =SUM(L30:L56) -> 52236.61704
A63: Tc solutions, Measured 13.03.2026
A64: 1E-5 M Tc with 1.3 g/L of siderite, after 1 day, Experiment done 11.03.2026
A66: Measurement data | E66: Calculations
A67: Positions | B67: Sample ID | C67: cpm | D67: Efficiency | E67: DPM in vial | F67: LSC, mL | G67: Tc aliquot, mL | H67: Vial, Bq/ml | I67: Sample, Bq/ml | J67: Sample [99Tc], M | K67: LSC waste, Bq/mL | L67: Bq, solid waste
A68: A01 | B68: blank | C68: 26.61
A69: A02 | B69: Tc+s_24h_pH7a | C69: 76.83 | D69: 0.868 | E69: 88.489 | F69: 5 | G69: 0.2 | H69: =E69/(60*(F69+G69)) -> 0.2836185897 | I69: =E69/(60*G69) -> 7.374083333 | J69: =I69/62659.1/1000 -> 1.176857525e-07 | K69: =H69 -> 0.2836185897 | L69: =$I$20*5-5*I69 -> 2768.604583
A70: A03 | B70: Tc+s_24h_pH7b | C70: -4.1 | D70: 0.607 | E70: 0 | F70: 5 | G70: 0.2 | H70: =E70/(60*(F70+G70)) -> 0 | I70: =E70/(60*G70) -> 0 | J70: =I70/62659.1/1000 -> 0 | K70: =H70 -> 0 | L70: =$I$20*5-5*I70 -> 2805.475
A71: A04 | B71: Tc+s_24h_pH10a | C71: 115.36 | D71: 0.887 | E71: 130.118 | F71: 5 | G71: 0.2 | H71: 0.4170448718 | I71: 10.84316667 | J71: 1.730501502e-07 | K71: 0.4170448718 | L71: 2751.259167
A72: A05 | B72: Tc+s_24h_pH10b | C72: 75.23 | D72: 0.88 | E72: 85.533 | F72: 5 | G72: 0.2 | H72: 0.2741442308 | I72: 7.12775 | J72: 1.137544267e-07 | K72: 0.2741442308 | L72: 2769.83625
J73: TOTAL: | K73: =SUM(K69:K72) -> 0.9748076923 | L73: =SUM(L69:L72) -> 11095.175

Sheet LSC raw data
A1: Position | B1: Sample_ID | C1: CPM | D1: Efficiency | E1: DPM im Vial | F1: Bq im Vial | G1: Error 2S% | H1: Lumi % | I1: TDCR
A2: A01 | B2: blank | C2: 68.34 | G2: 7.653 | H2: 4.039 | I2: 0.278
A3: A02 | B3: Tc stock 10e-4M | C3: 65636.1 | D3: 0.975 | E3: 67331.4 | F3: 1122.19 | G3: 0.252 | H3: 0.019 | I3: 0.972
A4: A03 | B4: Tc_sid_20min_4a | C4: 7069.88 | D4: 0.975 | E4: 7250.55 | F4: 120.842 | G4: 0.751 | H4: 0.073 | I4: 0.972
A5: A04 | B5: Tc_sid_20min_5a | C5: 7887.32 | D5: 0.977 | E5: 8075.9 | F5: 134.598 | G5: 0.711 | H5: 0.069 | I5: 0.974
A6: A05 | B6: Tc_sid_20min_6a | C6: -17.61 | D6: 0.802 | E6: 0 | F6: 0 | G6: 8.882 | H6: 6.663 | I6: 0.757
A7: A06 | B7: Tc_sid_20min_6b | C7: 1760.91 | D7: 0.97 | E7: 1814.95 | F7: 30.249 | G7: 1.48 | H7: 0.202 | I7: 0.966
A8: B01 | B8: Tc_sid_20min_8a | C8: 93.14 | D8: 0.886 | E8: 105.15 | F8: 1.753 | G8: 4.978 | H8: 1.3 | I8: 0.864
A9: B02 | B9: Tc_sid_20min_8b | C9: 425.42 | D9: 0.9 | E9: 472.848 | F9: 7.881 | G9: 2.847 | H9: 0.401 | I9: 0.882
A10: B03 | B10: Tc_sid_20min_10a | C10: 64.61 | D10: 0.918 | E10: 70.412 | F10: 1.174 | G10: 5.486 | H10: 1.166 | I10: 0.904
A11: B04 | B11: Tc_sid_20min_10b | C11: -38.33 | D11: 0.791 | E11: 0 | F11: 0 | G11: 11.547 | H11: 4.565 | I11: 0.743
A12: B05 | B12: Tc_sid_20min_12a | C12: 205.38 | D12: 0.93 | E12: 220.944 | F12: 3.682 | G12: 3.824 | H12: 0.475 | I12: 0.918
A13: B06 | B13: Tc_sid_20min_12b | C13: -30.53 | D13: 0.782 | E13: 0 | F13: 0 | G13: 10.287 | H13: 2.909 | I13: 0.733
B18: Sample_ID | C18: CPM | D18: Efficiency | E18: DPM im Vial | F18: LSC, mL | G18: Tc aliquot, mL | H18: Vial, Bq/ml | I18: Sample, Bq/ml | J18: Sample [99Tc], mM | K18: Sample [99Tc], mM
B19: Tc stock 10e-4M | C19: 65636.1 | D19: 0.975 | E19: 67331.4 | F19: 5 | G19: 0.2 | H19: =E19/(60*(F19+G19)) -> 215.8057692 | I19: =E19/(60*G19) -> 5610.95 | J19: =I19/62659.1 -> 8.95E-02 | K19: =J19/1000 -> 9E-05

Sheet LSC + pH combined
A6: Sample_ID | B6: Target_pH | C6: Time_h | D6: pH_Actual | E6: Eh measured | F6: [Tc] | G6: [Kd] | H6: Time_h | I6: pH_Actual | J6: Eh measured | K6: [Tc] | L6: [Kd]
A7: 3a | B7: 3 | C7: 0.5
A8: 3b | B8: 3
A9: 4a | B9: 4
A10: 4b | B10: 4
A11: 5a | B11: 5
A12: 6a | B12: 6
A13: 6b | B13: 6
A14: 7a | B14: 7
A15: 7b | B15: 7
A16: 8a | B16: 8
A17: 8b | B17: 8
A18: 9a | B18: 9
A19: 9b | B19: 9
A20: 10a | B20: 10
A21: 10b | B21: 10
A22: 11a | B22: 11
A23: 11b | B23: 11
A24: 12a | B24: 12
A25: 12b | B25: 12
